fUST/lending_fUST_20250529
["ID","MTS","AMOUNT","RATE_DAILY","PERIOD"]
[362872588,1748502651809,-1527.84,0.00021369,2]
[362872589,1748502651818,-633.39,0.00021369,2]
[362872590,1748502651827,-430.0,0.00021369,2]
[362872591,1748502651836,-693.43,0.00021369,2]
[362872592,1748502651845,-430.0,0.00021369,2]
[362872593,1748502651855,-430.0,0.00021369,2]
[362872594,1748502651864,-620.73,0.00021369,2]
[362872595,1748502651873,-430.0,0.00021369,2]
[362872596,1748502651882,-430.0,0.00021369,2]
[362872597,1748502651891,-525.79,0.00021369,2]
[362872598,1748502651900,-430.0,0.00021369,2]
[362872599,1748502651909,-769.09,0.00021369,2]
[362872600,1748502651919,-430.0,0.00021369,2]
[362872601,1748502651928,-430.0,0.00021369,2]
[362872602,1748502651938,-430.0,0.00021369,2]
[362872603,1748502651947,-430.0,0.00021369,2]
[362872604,1748502651956,-382.027593,0.00021369,2]
[362872605,1748502651965,-602.51,0.00021369,2]
[362872606,1748502651974,-382.027593,0.00021369,2]
[362872607,1748502651983,-1859.43,0.00021369,2]
[362872608,1748502651992,-767.83,0.00021369,2]
[362872609,1748502652002,-1338.57,0.00021369,2]
[362872610,1748502652011,-520.00032308,0.00021369,2]
[362872611,1748502652021,-331.6012484,0.00021369,2]
[362872612,1748502652030,-1861.14,0.00021369,2]
[362872613,1748502652039,-430.0,0.00021369,2]
[362872614,1748502652049,-430.0,0.00021369,2]
[362872615,1748502652058,-599.54,0.00021369,2]
[362872616,1748502652067,-622.98,0.00021369,2]
[362872617,1748502652077,-430.0,0.00021369,2]
[362872618,1748502652086,-458.19,0.00021369,2]
[362872619,1748502652095,-430.0,0.00021369,2]
[362872620,1748502652104,-3240.33,0.00021369,2]
[362872621,1748502652114,-820.22,0.00021369,2]
[362872622,1748502652123,-3037.75,0.00021369,2]
[362872623,1748502652132,-501.40980731,0.000214,2]
[362872624,1748502652142,-500.0,0.000214,2]
[362872625,1748502652152,-500.0,0.000214,2]
[362872626,1748502652161,-353.1652959,0.000214,2]
[362872627,1748502652171,-500.67167304,0.00021431,2]
[362872628,1748502652180,-500.0,0.00021433,2]
[362872629,1748502652190,-448.1433307,0.00021452,5]
[362872630,1748502652200,-540.0,0.0002149,2]
[362872631,1748502652209,-1000.0,0.00021526,2]
[362872632,1748502652219,-4000.0,0.00021559,4]
[362872633,1748502652229,-448.1433307,0.00021624,5]
[362872634,1748502652238,-160.0,0.00021642,2]
[362872635,1748502652248,-512.89,0.00021643,2]
[362872636,1748502652258,-835.93,0.00021643,2]
[362872637,1748502652269,-430.0,0.00021643,2]
[362872638,1748502652279,-430.0,0.00021643,2]
[362872639,1748502652288,-151.0,0.00021643,2]
[362872640,1748502652298,-734.54,0.00021643,2]
[362872641,1748502652307,-151.0,0.00021643,2]
[362872642,1748502652318,-430.0,0.00021643,2]
[362872643,1748502652327,-548.55525415,0.00021643,2]
[362872644,1748502652337,-1868.89,0.00021643,2]
[362872645,1748502652346,-430.0,0.00021643,2]
[362872646,1748502652356,-430.0,0.00021643,2]
[362872647,1748502652365,-1175.42,0.00021643,2]
[362872648,1748502652375,-1527.84,0.00021643,2]
[362872649,1748502652383,-633.39,0.00021643,2]
[362872650,1748502652393,-430.0,0.00021643,2]
[362872651,1748502652402,-693.43,0.00021643,2]
[362872652,1748502652412,-430.0,0.00021643,2]
[362872653,1748502652422,-430.0,0.00021643,2]
[362872654,1748502652433,-620.73,0.00021643,2]
[362872655,1748502652442,-430.0,0.00021643,2]
[362872656,1748502652453,-430.0,0.00021643,2]
[362872657,1748502652467,-525.79,0.00021643,2]
[362872658,1748502652477,-430.0,0.00021643,2]
[362872659,1748502652488,-769.09,0.00021643,2]
[362872660,1748502652500,-430.0,0.00021643,2]
[362872661,1748502652510,-430.0,0.00021643,2]
[362872662,1748502652520,-430.0,0.00021643,2]
[362872663,1748502652530,-430.0,0.00021643,2]
[362872664,1748502652541,-602.51,0.00021643,2]
[362872665,1748502652551,-1859.43,0.00021643,2]
[362872666,1748502652560,-767.83,0.00021643,2]
[362872667,1748502652570,-1338.57,0.00021643,2]
[362872668,1748502652579,-196.213356,0.00021643,2]
[362872669,1748502652588,-1861.14,0.00021643,2]
[362872670,1748502652598,-430.0,0.00021643,2]
[362872671,1748502652607,-430.0,0.00021643,2]
[362872672,1748502652616,-599.54,0.00021643,2]
[362872673,1748502652625,-622.98,0.00021643,2]
[362872674,1748502652634,-430.0,0.00021643,2]
[362872675,1748502652643,-458.19,0.00021643,2]
[362872676,1748502652652,-430.0,0.00021643,2]
[362872677,1748502652661,-3240.33,0.00021643,2]
[362872678,1748502652670,-820.22,0.00021643,2]
[362872679,1748502652680,-3037.75,0.00021643,2]
[362872680,1748502652690,-511.46126897,0.00021664,2]
[362872681,1748502652701,-151.0,0.000217,4]
[362872682,1748502652710,-207.4,0.00021712,2]
[362872683,1748502652721,-448.1433307,0.00021797,6]
[362872684,1748502652731,-166.43334096,0.0002187,2]
[362872685,1748502652742,-3000.0,0.000219,2]
[362872686,1748502652752,-3000.0,0.0002191,2]
[362872687,1748502652762,-160.0,0.00021916,2]
[362872688,1748502652773,-512.89,0.00021917,2]
[362872689,1748502652782,-835.93,0.00021917,2]
[362872690,1748502652791,-430.0,0.00021917,2]
[362872691,1748502652801,-430.0,0.00021917,2]
[362872692,1748502652810,-734.54,0.00021917,2]
[362872693,1748502652819,-430.0,0.00021917,2]
[362872694,1748502652829,-1868.89,0.00021917,2]
[362872695,1748502652839,-430.0,0.00021917,2]
[362872696,1748502652849,-151.76775,0.00021917,2]
[362872697,1748502652858,-430.0,0.00021917,2]
[362872698,1748502652867,-1175.42,0.00021917,2]
[362872699,1748502652877,-1527.84,0.00021917,2]
[362872700,1748502652887,-633.39,0.00021917,2]
[362872701,1748502652896,-430.0,0.00021917,2]
[362872702,1748502652906,-693.43,0.00021917,2]
[362872703,1748502652914,-430.0,0.00021917,2]
[362872704,1748502652924,-430.0,0.00021917,2]
[362872705,1748502652933,-620.73,0.00021917,2]
[362872706,1748502652942,-430.0,0.00021917,2]
[362872707,1748502652951,-151.0,0.00021917,2]
[362872708,1748502652961,-430.0,0.00021917,2]
[362872709,1748502652970,-525.79,0.00021917,2]
[362872710,1748502652979,-151.0,0.00021917,2]
[362872711,1748502652990,-430.0,0.00021917,2]
[362872712,1748502653000,-769.09,0.00021917,2]
[362872713,1748502653009,-151.0,0.00021917,2]
[362872714,1748502653018,-430.0,0.00021917,2]
[362872715,1748502653027,-151.0,0.00021917,2]
[362872716,1748502653037,-430.0,0.00021917,2]
[362872717,1748502653047,-430.0,0.00021917,2]
[362872718,1748502653056,-430.0,0.00021917,2]
[362872719,1748502653066,-602.51,0.00021917,2]
[362872720,1748502653075,-1859.43,0.00021917,2]
[362872721,1748502653086,-767.83,0.00021917,2]
[362872722,1748502653095,-1338.57,0.00021917,2]
[362872723,1748502653106,-1861.14,0.00021917,2]
[362872724,1748502653115,-430.0,0.00021917,2]
[362872725,1748502653125,-599.54,0.00021917,2]
[362872726,1748502653134,-430.0,0.00021917,2]
[362872727,1748502653144,-622.98,0.00021917,2]
[362872728,1748502653155,-430.0,0.00021917,2]
[362872729,1748502653165,-458.19,0.00021917,2]
[362872730,1748502653174,-430.0,0.00021917,2]
[362872731,1748502653184,-3240.33,0.00021917,2]
[362872732,1748502653282,-820.22,0.00021917,2]
[362872733,1748502653292,-3037.75,0.00021917,2]
[362872734,1748502653302,-3000.0,0.0002192,2]
[362872735,1748502653312,-3000.0,0.0002193,2]
[362872736,1748502653321,-3000.0,0.0002194,2]
[362872737,1748502653330,-151.0,0.0002194,7]
[362872738,1748502653340,-151.0,0.0002194,7]
[362872739,1748502653349,-151.0,0.0002194,7]
[362872740,1748502653359,-151.0,0.0002194,7]
[362872741,1748502653370,-500.0,0.00021948,2]
[362872742,1748502653379,-3000.0,0.0002195,2]
[362872743,1748502653389,-3000.0,0.0002196,2]
[362872744,1748502653399,-448.1433307,0.00021969,6]
[362872745,1748502653408,-3000.0,0.0002197,2]
[362872746,1748502653418,-151.0,0.0002197,7]
[362872747,1748502653428,-1309.840553,0.0002197,2]
[362872748,1748502653439,-1309.840553,0.0002197,2]
[362872749,1748502653449,-151.0,0.0002197,7]
[362872750,1748502653461,-3000.0,0.0002198,2]
[362872751,1748502653470,-3000.0,0.0002199,2]
[362872752,1748502653479,-219.002222,0.0002199,7]
[362872753,1748502653490,-219.002222,0.0002199,7]
[362872754,1748502653500,-229.604796,0.0002199,7]
[362872755,1748502653510,-151.0,0.0002199,2]
[362872756,1748502653521,-151.0,0.0002199,7]
[362872757,1748502653531,-229.604796,0.0002199,7]
[362872758,1748502653541,-151.0,0.0002199,7]
[362872759,1748502653552,-151.0,0.0002199,7]
[362872760,1748502653562,-151.0,0.0002199,7]
[362872761,1748502653571,-151.0,0.0002199,7]
[362872762,1748502653581,-151.0,0.0002199,7]
[362872763,1748502653590,-151.0,0.0002199,7]
[362872764,1748502653601,-389.02489217,0.0002199,7]
[362872765,1748502653717,-21.32578383,0.0002199,7]
[362872766,1748502653726,-410.350676,0.0002199,7]
[362872767,1748502653736,-1168.787744,0.0002199,7]
[362872768,1748502653746,-1168.787744,0.0002199,7]
[362872769,1748502653755,-151.0,0.0002199,7]
[362872770,1748502653765,-153.73147,0.0002199,7]
[362872771,1748502653775,-151.0,0.0002199,7]
[362872772,1748502653785,-382.027593,0.0002199,7]
[362872773,1748502653794,-382.027593,0.0002199,7]
[362872774,1748502653804,-3000.0,0.00022,2]
[362872775,1748502653814,-1548.9,0.00022,7]
[362872776,1748502653824,-3606.46,0.00022,7]
[362872777,1748502653833,-176.0,0.00022,2]
[362872778,1748502653843,-3000.0,0.0002201,2]
[362872779,1748502653853,-3000.0,0.0002202,2]
[362872780,1748502653863,-3000.0,0.0002203,2]
[362872781,1748502653872,-151.0,0.0002203,7]
[362872782,1748502653882,-3000.0,0.0002204,2]
[362872783,1748502653892,-3000.0,0.0002205,2]
[362872784,1748502653902,-3000.0,0.0002206,2]
[362872785,1748502653911,-3000.0,0.0002207,2]
[362872786,1748502653920,-3000.0,0.0002208,2]
[362872787,1748502653930,-3000.0,0.0002209,2]
[362872788,1748502653940,-3000.0,0.000221,2]
[362872789,1748502653950,-3000.0,0.0002211,2]
[362872790,1748502653960,-3000.0,0.0002212,2]
[362872791,1748502653969,-1233.34762637,0.0002213,2]
[362872792,1748502653982,-427.38381712,0.0002213,2]
[362872793,1748502653993,-1020.0,0.0002213,2]
[362872794,1748502654004,-319.26855651,0.0002213,2]
[362872795,1748502654014,-207.732225,0.0002213,7]
[362872796,1748502654023,-163.081009,0.0002213,7]
[362872797,1748502654033,-3000.0,0.0002214,2]
[362872798,1748502654043,-151.0,0.0002214,7]
[362872799,1748502654052,-448.1433307,0.00022141,6]
[362872800,1748502654061,-3000.0,0.0002215,2]
[362872801,1748502654070,-3000.0,0.0002216,2]
[362872802,1748502654080,-3357.810253,0.0002217,2]
[362872803,1748502654089,-160.0,0.0002219,2]
[362872804,1748502654099,-512.89,0.00022191,2]
[362872805,1748502654108,-835.93,0.00022191,2]
[362872806,1748502654117,-430.0,0.00022191,2]
[362872807,1748502654127,-430.0,0.00022191,2]
[362872808,1748502654137,-734.54,0.00022191,2]
[362872809,1748502654146,-430.0,0.00022191,2]
[362872810,1748502654156,-1868.89,0.00022191,2]
[362872811,1748502654166,-430.0,0.00022191,2]
[362872812,1748502654175,-430.0,0.00022191,2]
[362872813,1748502654185,-1175.42,0.00022191,2]
[362872814,1748502654195,-1527.84,0.00022191,2]
[362872815,1748502654204,-633.39,0.00022191,2]
[362872816,1748502654214,-430.0,0.00022191,2]
[362872817,1748502654223,-693.43,0.00022191,2]
[362872818,1748502654232,-280.43864885,0.00022191,2]
[362872819,1748502654241,-430.0,0.00022191,2]
[362872820,1748502654251,-620.73,0.00022191,2]
[362872821,1748502654261,-430.0,0.00022191,2]
[362872822,1748502654270,-430.0,0.00022191,2]
[362872823,1748502654280,-525.79,0.00022191,2]
[362872824,1748502654289,-430.0,0.00022191,2]
[362872825,1748502654299,-769.09,0.00022191,2]
[362872826,1748502654308,-430.0,0.00022191,2]
[362872827,1748502654318,-578.09555391,0.00022191,2]
[362872828,1748502654327,-430.0,0.00022191,2]
[362872829,1748502654336,-602.51,0.00022191,2]
[362872830,1748502654346,-1859.43,0.00022191,2]
[362872831,1748502654356,-767.83,0.00022191,2]
[362872832,1748502654365,-1338.57,0.00022191,2]
[362872833,1748502654376,-1861.14,0.00022191,2]
[362872834,1748502654386,-465.82,0.00022191,2]
[362872835,1748502654396,-599.54,0.00022191,2]
[362872836,1748502654405,-430.0,0.00022191,2]
[362872837,1748502654415,-622.98,0.00022191,2]
[362872838,1748502654425,-430.0,0.00022191,2]
[362872839,1748502654435,-458.19,0.00022191,2]
[362872840,1748502654444,-430.0,0.00022191,2]
[362872841,1748502654455,-1092.1592102,0.00022191,2]
[362872842,1748502654559,-430.0,0.0002,2]
[362872843,1748502654569,-430.0,0.00020273,2]
[362872844,1748502654578,-430.0,0.00020547,2]
[362872845,1748502654587,-47.97472141,0.00020821,2]
[362872846,1748502654598,-382.02527859,0.00020821,2]
[362872847,1748502654607,-442.92926488,0.00021095,2]
[362872848,1748502654622,-11.98403689,0.00021095,2]
[362872849,1748502654633,-2148.1707898,0.00022191,2]
[362872850,1748502654642,-820.22,0.00022191,2]
[362872851,1748502654650,-1116.31649783,0.00022191,2]
[362872852,1748502654691,-151.0,0.00020509,2]
[362872853,1748502654700,-121.69,0.00022191,2]
[362872854,1748502654712,-1799.74350217,0.00022191,2]
[362872855,1748502654721,-151.0,0.000222,7]
[362872856,1748502654731,-700.0,0.0002226,2]
[362872857,1748502654740,-448.1433307,0.00022314,7]
[362872858,1748502654750,-514.27088189,0.00022403,2]
[362872859,1748502654759,-160.0,0.00022464,2]
[362872860,1748502654769,-164.77437523,0.00022464,2]
[362872861,1748502654779,-512.89,0.00022465,2]
[362872862,1748502654788,-835.93,0.00022465,2]
[362872863,1748502654798,-430.0,0.00022465,2]
[362872864,1748502654807,-430.0,0.00022465,2]
[362872865,1748502654817,-734.54,0.00022465,2]
[362872866,1748502654826,-430.0,0.00022465,2]
[362872867,1748502654835,-1868.89,0.00022465,2]
[362872868,1748502654844,-430.0,0.00022465,2]
[362872869,1748502654853,-430.0,0.00022465,2]
[362872870,1748502654863,-1175.42,0.00022465,2]
[362872871,1748502654873,-1527.84,0.00022465,2]
[362872872,1748502654883,-633.39,0.00022465,2]
[362872873,1748502654893,-430.0,0.00022465,2]
[362872874,1748502654903,-693.43,0.00022465,2]
[362872875,1748502654912,-430.0,0.00022465,2]
[362872876,1748502654921,-620.73,0.00022465,2]
[362872877,1748502654930,-430.0,0.00022465,2]
[362872878,1748502654944,-151.0,0.00022465,7]
[362872879,1748502654954,-430.0,0.00022465,2]
[362872880,1748502654963,-525.79,0.00022465,2]
[362872881,1748502654972,-151.0,0.00022465,7]
[362872882,1748502654982,-430.0,0.00022465,2]
[362872883,1748502654991,-769.09,0.00022465,2]
[362872884,1748502655090,-151.0,0.00022465,7]
[362872885,1748502655100,-430.0,0.00022465,2]
[362872886,1748502655110,-151.0,0.00022465,7]
[362872887,1748502655120,-602.51,0.00022465,2]
[362872888,1748502655130,-1859.43,0.00022465,2]
[362872889,1748502655139,-767.83,0.00022465,2]
[362872890,1748502655148,-1338.57,0.00022465,2]
[362872891,1748502655158,-1861.14,0.00022465,2]
[362872892,1748502655168,-599.54,0.00022465,2]
[362872893,1748502655177,-430.0,0.00022465,2]
[362872894,1748502655188,-622.98,0.00022465,2]
[362872895,1748502655198,-430.0,0.00022465,2]
[362872896,1748502655208,-458.19,0.00022465,2]
[362872897,1748502655218,-430.0,0.00022465,2]
[362872898,1748502655228,-2302.32533226,0.00022465,2]
[362872899,1748502655240,-938.00466774,0.00022465,2]
[362872900,1748502655249,-820.22,0.00022465,2]
[362872901,1748502655259,-3037.75,0.00022465,2]
[362872902,1748502655269,-448.1433307,0.00022486,7]
[362872903,1748502655278,-500.0,0.000225,2]
[362872904,1748502655288,-165.959121,0.00022505,2]
[362872905,1748502655298,-163.276102,0.0002254,3]
[362872906,1748502655307,-689.14607498,0.000226,2]
[362872907,1748502655319,-385.54392502,0.000226,2]
[362872908,1748502655329,-151.0,0.000226,7]
[362872909,1748502655338,-1309.840553,0.000226,2]
[362872910,1748502655348,-1309.840553,0.000226,2]
[362872911,1748502655358,-151.0,0.000226,7]
[362872912,1748502655367,-265.012673,0.000226,7]
[362872913,1748502655377,-151.0,0.000226,7]
[362872914,1748502655387,-151.0,0.000226,7]
[362872915,1748502655396,-151.0,0.000226,7]
[362872916,1748502655406,-83.47955465,0.00022659,7]
[362872917,1748502655522,-430.0,0.00019178,2]
[362872918,1748502655532,-431.5,0.00019452,2]
[362872919,1748502655541,-151.0,0.00021117,2]
[362872920,1748502655551,-151.0,0.00021917,2]
[362872921,1748502655560,-364.66377605,0.00022659,7]
[362872922,1748502655570,-160.0,0.00022738,2]
[362872923,1748502655579,-512.89,0.00022739,2]
[362872924,1748502655589,-430.0,0.00022739,2]
[362872925,1748502655599,-430.0,0.00022739,2]
[362872926,1748502655609,-151.0,0.00022739,7]
[362872927,1748502655618,-734.54,0.00022739,2]
[362872928,1748502655628,-430.0,0.00022739,2]
[362872929,1748502655637,-1868.89,0.00022739,2]
[362872930,1748502655647,-430.0,0.00022739,2]
[362872931,1748502655657,-161.31310008,0.00022739,2]
[362872932,1748502655667,-1175.42,0.00022739,2]
[362872933,1748502655676,-1527.84,0.00022739,2]
[362872934,1748502655686,-633.39,0.00022739,2]
[362872935,1748502655695,-430.0,0.00022739,2]
[362872936,1748502655704,-693.43,0.00022739,2]
[362872937,1748502655714,-430.0,0.00022739,2]
[362872938,1748502655723,-620.73,0.00022739,2]
[362872939,1748502655732,-430.0,0.00022739,2]
[362872940,1748502655741,-430.0,0.00022739,2]
[362872941,1748502655751,-525.79,0.00022739,2]
[362872942,1748502655760,-430.0,0.00022739,2]
[362872943,1748502655769,-769.09,0.00022739,2]
[362872944,1748502655778,-430.0,0.00022739,2]
[362872945,1748502655787,-382.027593,0.00022739,7]
[362872946,1748502655796,-602.51,0.00022739,2]
[362872947,1748502655805,-382.027593,0.00022739,7]
[362872948,1748502655814,-336.85423858,0.00022739,2]
[362872949,1748502656819,-578.8587512,0.00019178,2]
[362872950,1748502656829,-352.4846688,0.00019373,2]
[362872951,1748502656839,-693.229446,0.00020509,2]
[362872952,1748502656848,-693.229446,0.00021117,2]
[362872953,1748502656858,-693.229446,0.0002194,7]
[362872954,1748502656867,-151.0,0.00022465,7]
[362872955,1748502656877,-1522.57576142,0.00022739,2]
[362872956,1748502656887,-767.83,0.00022739,2]
[362872957,1748502656975,-1338.57,0.00022739,2]
[362872958,1748502656986,-1861.14,0.00022739,2]
[362872959,1748502656996,-487.59008061,0.00022739,2]
[362872960,1748502657008,-111.94991939,0.00022739,2]
[362872961,1748502657017,-430.0,0.00022739,2]
[362872962,1748502657028,-622.98,0.00022739,2]
[362872963,1748502657038,-430.0,0.00022739,2]
[362872964,1748502657048,-458.19,0.00022739,2]
[362872965,1748502657057,-430.0,0.00022739,2]
[362872966,1748502657068,-3240.33,0.00022739,2]
[362872967,1748502657077,-820.22,0.00022739,2]
[362872968,1748502657087,-3037.75,0.00022739,2]
[362872969,1748502657096,-448.1433307,0.00022831,8]
[362872970,1748502657106,-3606.46,0.000229,7]
[362872971,1748502657116,-200.0,0.0002296,2]
[362872972,1748502657125,-200.0,0.0002296,3]
[362872973,1748502657135,-160.37391087,0.00022999,2]
[362872974,1748502657144,-151.0,0.00022999,7]
[362872975,1748502657155,-72659.07196601,0.00023,2]
[362872976,1748502657164,-1000.0,0.00023,23]
[362872977,1748502657174,-151.0,0.00023,7]
[362872978,1748502657183,-151.0,0.00023,7]
[362872979,1748502657194,-158.994419,0.00023,7]
[362872980,1748502657203,-158.994419,0.00023,7]
[362872981,1748502657212,-151.0,0.00023,7]
[362872982,1748502657222,-160.0,0.00023,3]
[362872983,1748502657232,-400.0,0.00023,10]
[362872984,1748502657241,-219.002222,0.00023,7]
[362872985,1748502657250,-219.002222,0.00023,7]
[362872986,1748502657260,-229.604796,0.00023,7]
[362872987,1748502657270,-151.0,0.00023,2]
[362872988,1748502657279,-154.571226,0.00023,7]
[362872989,1748502657288,-229.604796,0.00023,7]
[362872990,1748502657298,-151.0,0.00023,7]
[362872991,1748502657308,-166.01542,0.00023,7]
[362872992,1748502657317,-151.0,0.00023,7]
[362872993,1748502657327,-151.0,0.00023,7]
[362872994,1748502657336,-151.0,0.00023,7]
[362872995,1748502657346,-160.0,0.00023,3]
[362872996,1748502657355,-151.0,0.00023,7]
[362872997,1748502657364,-410.350676,0.00023,7]
[362872998,1748502657374,-410.350676,0.00023,7]
[362872999,1748502657383,-292.488006,0.00023,7]
[362873000,1748502657393,-327.93594019,0.00023,2]
[362873001,1748502657403,-1168.787744,0.00023,7]
[362873002,1748502657412,-1168.787744,0.00023,7]
[362873003,1748502657422,-151.0,0.00023,7]
[362873004,1748502657431,-160.0,0.00023,3]
[362873005,1748502657442,-150.0,0.00023,2]
[362873006,1748502657452,-160.0,0.00023,3]
[362873007,1748502657464,-448.1433307,0.00023003,8]
[362873008,1748502657474,-512.89,0.00023013,2]
[362873009,1748502657483,-151.0,0.00023013,7]
[362873010,1748502657492,-430.0,0.00023013,2]
[362873011,1748502657502,-1309.840553,0.00023013,2]
[362873012,1748502657511,-1309.840553,0.00023013,2]
[362873013,1748502657522,-430.0,0.00023013,2]
[362873014,1748502657532,-151.0,0.00023013,7]
[362873015,1748502657542,-734.54,0.00023013,2]
[362873016,1748502657551,-430.0,0.00023013,2]
[362873017,1748502657560,-1868.89,0.00023013,2]
[362873018,1748502657570,-161.66606011,0.00023013,2]
[362873019,1748502657579,-151.0,0.00023013,7]
[362873020,1748502657588,-1175.42,0.00023013,2]
[362873021,1748502657598,-1527.84,0.00023013,2]
[362873022,1748502657607,-633.39,0.00023013,2]
[362873023,1748502657617,-325.52743092,0.00023013,2]
[362873024,1748502657627,-693.43,0.00023013,2]
[362873025,1748502657636,-430.0,0.00023013,2]
[362873026,1748502657646,-620.73,0.00023013,2]
[362873027,1748502657655,-389.89625736,0.00023013,2]
[362873028,1748502657664,-151.0,0.00023013,7]
[362873029,1748502657674,-430.0,0.00023013,2]
[362873030,1748502657683,-525.79,0.00023013,2]
[362873031,1748502657693,-151.0,0.00023013,7]
[362873032,1748502657702,-430.0,0.00023013,2]
[362873033,1748502657712,-769.09,0.00023013,2]
[362873034,1748502657722,-151.0,0.00023013,7]
[362873035,1748502657731,-430.0,0.00023013,2]
[362873036,1748502657740,-162.887845,0.00023013,7]
[362873037,1748502657750,-602.51,0.00023013,2]
[362873038,1748502657759,-1859.43,0.00023013,2]
[362873039,1748502657768,-151.0,0.00023013,7]
[362873040,1748502657777,-767.83,0.00023013,2]
[362873041,1748502657786,-1338.57,0.00023013,2]
[362873042,1748502657796,-151.0,0.00023013,7]
[362873043,1748502657805,-1861.14,0.00023013,2]
[362873044,1748502657815,-599.54,0.00023013,2]
[362873045,1748502657824,-430.0,0.00023013,2]
[362873046,1748502657833,-622.98,0.00023013,2]
[362873047,1748502657843,-430.0,0.00023013,2]
[362873048,1748502657854,-458.19,0.00023013,2]
[362873049,1748502657865,-430.0,0.00023013,2]
[362873050,1748502657875,-3240.33,0.00023013,2]
[362873051,1748502657885,-820.22,0.00023013,2]
[362873052,1748502657894,-3037.75,0.00023013,2]
[362873053,1748502657904,-151.0,0.00023013,7]
[362873054,1748502657915,-176.0,0.00023014,7]
[362873055,1748502657926,-250.0,0.00023042,2]
[362873056,1748502657938,-215.0738,0.00023081,2]
[362873057,1748502657947,-151.0,0.00023096,7]
[362873058,1748502657958,-151.0,0.000231,7]
[362873059,1748502657968,-4007.08,0.000231,2]
[362873060,1748502657978,-90850.04,0.000231,7]
[362873061,1748502657987,-151.0,0.000231,7]
[362873062,1748502657997,-151.0,0.000231,7]
[362873063,1748502658007,-151.0,0.000231,7]
[362873064,1748502658016,-1548.9,0.000231,7]
[362873065,1748502658026,-163.956218,0.000231,2]
[362873066,1748502658036,-151.0,0.000231,7]
[362873067,1748502658045,-151.0,0.000231,7]
[362873068,1748502658055,-151.0,0.000231,7]
[362873069,1748502658065,-410.350676,0.000231,7]
[362873070,1748502658074,-410.350676,0.000231,7]
[362873071,1748502658083,-1168.787744,0.000231,7]
[362873072,1748502658092,-1168.787744,0.000231,7]
[362873073,1748502658101,-151.0,0.000231,7]
[362873074,1748502658111,-151.0,0.000231,7]
[362873075,1748502658120,-382.027593,0.000231,7]
[362873076,1748502658130,-382.027593,0.000231,7]
[362873077,1748502658139,-2500.0,0.00023142,2]
[362873078,1748502658149,-158.994419,0.00023156,7]
[362873079,1748502658159,-158.994419,0.00023156,7]
[362873080,1748502658169,-151.0,0.00023156,7]
[362873081,1748502658179,-219.002222,0.00023156,7]
[362873082,1748502658188,-219.002222,0.00023156,7]
[362873083,1748502658198,-229.604796,0.00023156,7]
[362873084,1748502658207,-229.604796,0.00023156,7]
[362873085,1748502658217,-155.149337,0.00023156,7]
[362873086,1748502658226,-151.0,0.00023156,7]
[362873087,1748502658236,-500.0,0.00023157,2]